bitfinex/quotes_ETHUSD_20220215
["timestamp","ask_amount","ask_price","bid_price","bid_amount"]
[1644926081566,1.60887,3108.2,3108.0,0.00335881]
[1644926081966,1.60887,3108.2,3107.8,1.4642]
[1644926082169,2.4132363,3108.4,3107.8,1.4642]
[1644926082170,0.80443,3108.4,3107.9,0.00335878]
[1644926082371,0.80428,3108.2,3107.9,0.00335878]
[1644926083216,0.80428,3108.2,3107.8,3.56857]
[1644926083416,0.80428,3108.2,3107.9,0.00328792]
[1644926084217,0.80428,3108.2,3107.8,1.4642]
[1644926084419,1.60868,3108.2,3107.9,0.80436]
[1644926084618,0.80428,3108.2,3107.9,0.80764792]
[1644926085318,1.6085708,3108.8,3107.9,0.80764792]
[1644926085519,1.6085708,3108.8,3107.9,1.10436]
[1644926085720,0.80426,3108.7,3108.1,0.80428]
[1644926085919,0.02659578,3108.2,3108.1,0.80428]
[1644926086519,0.02659578,3108.2,3108.0,0.00636193]
[1644926086966,0.02659578,3108.2,3108.0,0.81060193]
[1644926087165,0.02659578,3108.2,3108.0,1.11390562]
[1644926087366,0.02659578,3108.2,3108.0,2.11390562]
[1644926087969,0.02659578,3108.2,3108.0,0.81060193]
[1644926088667,0.02659578,3108.2,3108.0,1.11060193]
[1644926088868,0.83086578,3108.2,3108.0,0.81060193]
[1644926090711,0.02740804,3108.1,3108.0,0.81060193]
[1644926091611,0.02740804,3108.1,3108.0,0.00636193]
[1644926091810,0.02740804,3108.1,3107.9,0.00330023]
[1644926092010,1.63627924,3108.1,3107.9,0.00330023]
[1644926092311,0.02740804,3108.1,3107.9,0.00330023]
[1644926092713,0.83172804,3108.1,3107.9,0.80435]
[1644926095164,1.63609114,3108.1,3107.8,0.00636193]
[1644926095369,1.63609114,3108.1,3107.8,0.00966299]
[1644926095764,1.63609114,3108.1,3107.8,0.00330106]
[1644926096164,2.45059876,3108.0,3107.8,0.00330106]
[1644926096464,2.45059876,3108.0,3107.5,0.00636193]
[1644926096465,0.8045109,3107.9,3107.5,0.00636193]
[1644926096663,0.8045109,3107.9,3107.8,0.0033011]
[1644926097463,0.802989,3107.9,3107.5,0.00636193]
[1644926097872,0.752989,3107.9,3107.7,0.00330101]
[1644926098065,1.557479,3107.9,3107.7,0.00330101]
[1644926098312,1.507479,3107.9,3107.7,0.00330101]
[1644926098513,1.507479,3107.9,3107.3,6.02926294]
[1644926098712,0.8044882,3107.7,3107.3,6.02926294]
[1644926098911,0.8044882,3107.7,3107.3,7.63810294]
[1644926099111,1.60886,3107.8,3107.4,0.80448]
[1644926099411,0.05374747,3108.1,3107.4,0.80448]
[1644926100010,0.80433,3107.8,3107.4,0.80448]
[1644926100212,0.80433,3107.8,3107.5,0.00258309]
[1644926100413,0.80433,3107.8,3107.6,0.80438]
[1644926101011,0.05360035,3107.9,3107.6,3.99166522]
[1644926101215,0.05360035,3107.9,3107.7,3.70922344]
[1644926101611,0.05360035,3107.9,3107.7,0.3]
[1644926102273,0.04931399,3107.9,3107.7,0.3]
[1644926102476,0.04931399,3107.9,3107.6,0.80438]
[1644926102773,0.04931399,3107.9,3107.5,1.15555668]
[1644926103375,0.80445,3107.8,3107.5,0.00345668]
[1644926103574,0.80445,3107.8,3106.7,12.599]
[1644926103575,2.4135056,3107.8,3106.8,9.8455]
[1644926103776,1.60923,3107.7,3106.8,9.8455]
[1644926103974,1.60923,3107.7,3106.9,0.8046]
[1644926104980,1.60923,3107.7,3107.1,0.00345299]
[1644926105174,1.60923,3107.7,3107.2,0.80445]
[1644926105578,0.80462,3107.5,3107.1,0.00345299]
[1644926106015,0.80462,3107.5,3106.9,0.3]
[1644926106315,1.96085303,3107.5,3107.1,0.00345299]
[1644926106517,3.57006323,3107.5,3107.1,0.80801299]
[1644926106716,3.57006323,3107.5,3107.1,1.10801299]
[1644926106717,0.80447,3107.4,3107.1,1.10801299]
[1644926106914,0.80447,3107.4,3107.1,0.30345299]
[1644926107115,0.80447,3107.4,3107.1,0.3]
[1644926107315,0.80447,3107.4,3107.1,0.00345303]
[1644926107515,1.60898,3107.4,3107.1,0.00345303]
[1644926107716,2.4134687,3107.4,3107.2,0.80447]
[1644926107916,1.6089587,3107.4,3107.1,0.00345303]
[1644926108315,1.6089587,3107.4,3107.0,1.60901]
[1644926108514,0.80457,3107.3,3107.0,1.60901]
[1644926108717,0.80457,3107.3,3107.1,0.00345303]
[1644926108718,1.609101,3107.3,3107.1,0.00345303]
[1644926109017,1.609101,3107.3,3107.1,0.80798303]
[1644926109485,1.609101,3107.3,3107.1,0.80453]
[1644926110484,0.8045585,3107.2,3107.1,0.80456]
[1644926111086,0.85669641,3107.3,3107.1,0.80456]
[1644926112486,0.85669641,3107.3,3107.0,0.00345307]
[1644926115799,1.61013,3106.4,3106.2,0.00335387]
[1644926115996,1.3,3106.5,3105.0,5.169]
[1644926116198,1.61026,3106.2,3105.0,5.169]
[1644926116398,1.16100595,3105.5,3105.0,5.169]
[1644926116597,1.96600595,3105.5,3105.0,5.169]
[1644926117149,0.805,3105.5,3105.0,5.97404]
[1644926117350,0.805,3105.5,3105.0,0.75504]
[1644926117955,1.61026,3106.2,3105.0,0.75504]
[1644926117956,0.8049295,3105.8,3105.0,0.75504]
[1644926118150,1.6098589,3106.2,3105.0,0.75504]
[1644926118151,0.99557198,3106.2,3105.3,0.80489]
[1644926118951,3.48748012,3106.1,3105.3,2.10489]
[1644926119151,0.80487,3106.1,3105.3,2.10489]
[1644926119352,0.80494,3105.9,3105.3,1.80489]
[1644926119551,0.80494,3105.9,3105.2,7.43]
[1644926120353,0.80502,3105.8,3105.2,7.43]
[1644926120552,1.61,3105.8,3105.4,0.00257783]
[1644926120804,0.02796815,3105.5,3105.4,0.00257783]
[1644926121603,0.02796815,3105.5,3105.2,0.80499]
[1644926121806,0.02796815,3105.5,3105.3,0.00257791]
[1644926122804,0.02796815,3105.5,3105.2,0.80499]
[1644926123002,0.02796815,3105.5,3105.2,0.80756795]
[1644926123204,0.02796815,3105.5,3105.2,2.40756795]
[1644926123405,3.28848195,3106.9,3105.3,4.4703]
[1644926123406,0.80467,3106.9,3105.3,4.4703]
[1644926123607,0.80467,3106.9,3105.8,0.80465]
[1644926123806,0.80467,3106.9,3105.8,1.26765]
[1644926124005,0.80467,3106.9,3105.8,1.86765]
[1644926124205,0.89533514,3106.5,3106.0,0.00345773]
[1644926124456,1.70008754,3106.5,3106.0,0.00345773]
[1644926124658,2.50482754,3106.5,3106.1,0.80474]
[1644926124856,1.70007514,3106.5,3106.1,0.80474]
[1644926125455,3.30963574,3106.5,3106.1,0.80474]
[1644926125856,3.30963574,3106.5,3106.0,0.00345771]
[1644926126056,2.50487514,3106.5,3106.0,0.00345771]
[1644926126457,1.6097,3106.3,3105.6,1.60961]
[1644926126658,1.6097,3106.3,3106.0,0.0034577]
[1644926126957,1.60975,3106.2,3106.0,0.0034577]
[1644926127561,1.60975,3106.2,3105.6,1.60961]
[1644926127760,5.75694585,3106.2,3105.5,1.0]
[1644926127959,0.8049039,3106.0,3105.9,0.00345777]
[1644926128397,4.26821393,3106.0,3105.9,0.00345777]
[1644926128697,4.26821393,3106.0,3105.4,6.0978]
[1644926128902,2.4150253,3105.9,3105.4,6.0978]
[1644926129098,2.4150253,3105.9,3105.8,0.00345789]
[1644926129699,5.81024473,3105.9,3105.8,0.00345789]
[1644926129899,5.81024473,3105.9,3105.4,6.90276]
[1644926130098,5.81024473,3105.9,3105.4,7.20276]
[1644926130300,2.4150253,3105.9,3105.7,0.00345797]
[1644926130701,3.29750755,3105.8,3105.7,0.00345797]
[1644926130901,3.38013331,3105.8,3105.7,0.00345797]
[1644926131100,3.38013331,3105.8,3105.5,0.00627179]
[1644926131301,5.79531011,3105.8,3105.5,0.00627179]
[1644926131504,5.79531011,3105.8,3105.6,0.00345806]
[1644926131701,5.11628563,3105.7,3105.6,0.00345806]
[1644926132349,5.11628563,3105.7,3105.5,0.00627179]
[1644926132649,3.48825878,3105.6,3105.5,0.00972993]
[1644926133449,3.48825878,3105.6,3105.5,0.00345814]
[1644926133651,3.48825878,3105.6,3105.2,0.00627179]
[1644926133652,1.13456958,3105.4,3105.2,0.00627179]
[1644926133851,1.93964188,3105.4,3105.2,0.00627179]
[1644926134056,5.20518572,3105.4,3105.0,0.00627179]
[1644926134751,1.91236623,3105.4,3105.0,0.00627179]
[1644926135051,2.71751623,3105.4,3105.0,0.0097303]
[1644926135255,1.61022,3105.2,3105.0,0.0097303]
[1644926135451,2.4153251,3105.2,3105.0,0.8148103]
[1644926135702,1.61013,3105.7,3105.0,0.8148103]
[1644926135703,3.38901503,3105.6,3105.0,0.8148103]
[1644926135901,3.38901503,3105.6,3105.1,0.00627179]
[1644926136101,0.80505,3105.5,3105.1,0.00627179]
[1644926136403,0.80511,3105.4,3105.1,0.00966537]
[1644926137100,1.6101466,3105.4,3105.1,0.00966537]
[1644926137301,1.6101466,3105.4,3105.1,0.00627179]
[1644926137500,1.6101466,3105.4,3105.1,0.00966542]
[1644926137701,5.68260675,3105.4,3105.1,0.00966542]
[1644926138202,1.6103,3105.2,3104.9,5.70366542]
[1644926138502,2.4154606,3105.2,3104.9,5.70366542]
[1644926138702,1.6103006,3105.2,3104.9,5.70366542]
[1644926139104,1.6103006,3105.2,3104.7,2.9846]
[1644926139105,1.61031,3105.1,3104.7,2.9846]
[1644926139307,1.61031,3105.1,3104.7,1.8348]
[1644926139964,1.61031,3105.1,3104.8,0.80514]
[1644926140166,0.80506,3105.1,3104.8,0.80514]
[1644926141264,1.61018,3105.1,3104.8,0.80830918]
[1644926141868,2.4152854,3105.1,3104.8,0.80830918]
[1644926142167,2.4152854,3105.1,3104.8,0.80514]
[1644926142368,0.02571409,3105.3,3104.8,1.80830918]
[1644926142567,0.02571409,3105.3,3104.9,3.13513325]
[1644926142772,0.02571409,3105.3,3105.0,1.80486]
[1644926143068,0.02571409,3105.3,3105.0,1.463]
[1644926143305,0.02478146,3105.4,3105.1,5.14121483]
[1644926143306,9.555e-05,3105.4,3105.1,5.14121483]
[1644926143505,4.02137,3107.4,3105.1,5.14121483]
[1644926143506,1.60945,3106.6,3105.2,0.763]
[1644926143708,3.2194,3107.4,3105.3,3.5]
[1644926143709,0.01179107,3106.9,3105.3,3.5]
[1644926143905,0.01179107,3106.9,3105.6,0.8047]
[1644926144107,0.01179107,3106.9,3105.7,4.4585]
[1644926144108,0.8046902,3106.7,3105.7,4.4585]
[1644926144306,0.8046902,3106.7,3105.8,1.0]
[1644926144511,0.80474,3106.6,3105.9,0.463]
[1644926144708,0.80467,3106.5,3105.9,0.463]
[1644926145109,0.80467,3106.5,3105.9,1.26774]
[1644926145710,1.60944,3106.5,3105.9,1.26774]
[1644926145909,0.80467,3106.5,3105.9,1.26774]
[1644926146608,0.01179506,3106.9,3105.9,5.82191109]
[1644926146609,1.62111506,3106.9,3105.9,5.82191109]
[1644926146814,1.62111506,3106.9,3106.0,1.3]
[1644926147086,1.18347726,3107.1,3106.2,1.10463]
[1644926147280,0.01179506,3106.9,3106.3,3.30641592]
[1644926147481,0.01179506,3106.9,3106.2,2.4698]
[1644926147482,0.01179506,3106.9,3106.2,1.1698]
[1644926147682,0.80479,3106.8,3105.7,2.793]
[1644926148181,3.5,3106.7,3105.7,2.793]
[1644926148386,3.50916204,3106.9,3105.7,2.793]
[1644926148781,1.6099565,3106.5,3105.7,2.793]
[1644926148982,0.80495,3106.5,3105.7,2.793]
[1644926149781,3.4455901,3106.4,3105.7,2.793]
[1644926149981,0.80493,3106.3,3105.7,2.793]
[1644926150181,0.8049207,3106.2,3105.7,3.59795]
[1644926150384,0.80497,3106.3,3105.7,3.59795]
[1644926150806,0.128919,3106.8,3105.7,3.59795]
[1644926151007,0.80478,3106.1,3105.9,0.01484374]
[1644926151204,2.4143725,3106.4,3106.0,0.8048]
[1644926151205,0.80476,3106.3,3106.0,0.8048]
[1644926151606,0.80476,3106.3,3106.0,1.1048]
[1644926151804,0.80476,3106.3,3106.0,2.1048]
[1644926152005,0.80472,3106.3,3106.0,2.1048]
[1644926152208,0.85739534,3106.8,3106.0,2.1048]
[1644926152209,3.55269594,3106.8,3106.0,1.3]
[1644926152406,3.55269594,3106.8,3106.0,0.3]
[1644926152605,3.55269594,3106.8,3106.0,1.3]
[1644926152807,3.55269594,3106.8,3106.0,0.3]
[1644926153006,3.55269594,3106.8,3106.1,1.60928]
[1644926153207,0.8047,3106.5,3106.1,1.90928]
[1644926153407,0.8047,3106.5,3106.1,1.3]
[1644926153806,1.66207594,3106.8,3106.1,0.6]
[1644926153807,0.05269594,3106.8,3106.1,0.6]
[1644926154007,0.05269594,3106.8,3106.2,1.25473923]
[1644926154210,0.05269594,3106.8,3106.4,0.8045075]
[1644926154453,0.05269594,3106.8,3106.5,5.697]
[1644926154650,0.05269594,3106.8,3106.5,5.997]
[1644926154855,0.05269594,3106.8,3106.6,2.2303]
[1644926155051,0.05269594,3106.8,3106.6,2.59223468]
[1644926155253,0.05269594,3106.8,3106.7,5.01471417]
[1644926155254,7.144e-05,3106.8,3106.7,5.01471417]
[1644926155653,5.10876,3108.0,3106.8,6.9]
[1644926155654,0.00975009,3107.3,3106.8,6.9]
[1644926155856,0.00975009,3107.3,3106.9,1.463]
[1644926156074,0.00975009,3107.3,3106.9,3.05241542]
[1644926156253,0.00975009,3107.3,3107.0,1.4328]
[1644926156453,0.00243665,3108.4,3107.1,8.97134]
[1644926156653,0.80416,3108.7,3107.4,1.6083589]
[1644926156856,1.6084,3108.9,3107.5,0.463]
[1644926156857,0.0096187,3107.7,3107.5,0.463]
[1644926157157,0.0096187,3107.7,3107.5,0.763]
[1644926157356,1.87e-05,3107.7,3107.5,1.763]
[1644926157554,0.00240412,3108.4,3107.6,7.70422]
[1644926157757,1.09688511,3109.0,3107.9,0.8040472]
[1644926157954,1.09688511,3109.0,3108.0,0.463]
[1644926158232,1.09688511,3109.0,3108.0,0.763]
[1644926158733,1.09688511,3109.0,3108.2,0.80407]
[1644926158932,1.09688511,3109.0,3108.2,1.10407]
[1644926159332,1.09688511,3109.0,3108.2,1.3]
[1644926159532,0.80409,3109.0,3108.0,0.763]
[1644926159734,0.5,3109.4,3108.0,0.763]
[1644926159735,0.5,3109.4,3108.4,0.80412]
[1644926160038,0.5,3109.4,3108.4,1.56712]
[1644926160237,0.5,3109.4,3108.4,1.063]
[1644926160441,0.00290088,3109.1,3108.4,2.063]
[1644926160637,0.00290088,3109.1,3108.7,0.80394]
[1644926161535,0.80492426,3109.1,3108.7,0.80394]
[1644926161737,0.80492426,3109.1,3108.7,1.10394]
[1644926162250,0.00087426,3109.1,3108.7,1.10394]
[1644926162653,2.1081,3109.4,3108.9,0.80402]
[1644926162850,0.00087426,3109.1,3108.9,0.80402]
[1644926163851,0.804,3109.3,3108.9,0.80402]
[1644926164150,0.00290088,3109.2,3108.9,0.80402]
[1644926164950,0.804,3109.3,3108.9,0.80402]
[1644926165156,1.45919366,3108.8,3108.2,1.6083]
[1644926165358,0.8042,3108.7,3108.4,0.8042]
[1644926165710,0.8042,3108.7,3108.2,1.6083]
[1644926166711,0.00290088,3108.6,3108.2,1.6083]
[1644926167314,1.45919366,3108.8,3108.2,1.9083]
[1644926167612,0.80416,3108.7,3108.4,0.8042]
[1644926167812,0.00290088,3108.6,3108.4,0.8042]
[1644926168613,1.60832,3108.7,3108.4,0.8042]
[1644926168814,1.61122088,3108.7,3108.4,0.8042]
[1644926169014,0.00290088,3108.7,3108.4,0.8042]
[1644926169671,0.00290088,3108.7,3108.4,1.1042]
[1644926169871,1.45919366,3108.8,3108.4,2.1042]
[1644926170071,0.00290088,3108.7,3108.4,2.1042]
[1644926171073,1.45919366,3108.8,3108.4,2.16873209]
[1644926171271,0.00290088,3108.7,3108.4,2.16873209]
[1644926171472,0.00290088,3108.7,3108.4,2.97269119]
[1644926172072,0.00290088,3108.7,3108.5,0.463]
[1644926172274,1.45919366,3108.8,3108.6,0.80384]
[1644926172475,1.45919366,3108.8,3108.7,0.463]
[1644926173076,1.45919366,3108.8,3108.7,0.58149924]
[1644926174609,1.45919366,3108.8,3108.7,0.11849924]
[1644926181110,9.363e-05,3108.9,3108.8,7.01849924]
[1644926181314,9.363e-05,3108.9,3108.8,9.28535924]
[1644926181513,9.363e-05,3108.9,3108.8,9.58535924]
[1644926181915,0.80381,3109.9,3108.8,15.60955924]
[1644926182111,1.60769,3110.1,3109.2,0.11849924]
[1644926182112,0.80379,3110.1,3109.2,0.11849924]
[1644926182910,0.80379,3110.1,3109.4,0.11849924]
[1644926183316,0.80378,3109.9,3109.3,1.11849924]
[1644926183509,0.80378,3109.9,3109.3,0.11849924]
[1644926183710,0.80379,3110.1,3109.3,0.11849924]
[1644926184564,0.80379,3109.8,3109.6,0.11849924]
[1644926185964,0.80379,3109.8,3109.7,0.92227924]
[1644926186663,0.80379,3109.8,3109.7,0.11849924]
[1644926188812,0.80399,3109.7,3109.2,0.11849924]
[1644926189018,0.804,3109.6,3109.2,0.11849924]
[1644926189213,1.104,3109.6,3109.2,0.11849924]
[1644926190011,1.104,3109.6,3109.2,0.92246924]
[1644926190012,1.6079865,3109.5,3109.2,0.92246924]
[1644926190211,2.4119565,3109.5,3109.2,0.92246924]
[1644926190810,1.60797,3109.5,3109.2,0.92246924]
[1644926191212,0.80397,3109.4,3109.2,0.92246924]
[1644926192062,1.60787,3109.4,3109.2,0.92246924]
[1644926192556,3.25675369,3109.3,3109.2,0.11849924]
[1644926192956,3.55675369,3109.3,3109.2,0.11849924]
[1644926193156,4.36077789,3109.3,3109.2,0.11849924]
[1644926193758,0.80409,3109.1,3108.5,0.11849924]
[1644926193958,1.86722549,3109.0,3108.5,0.11849924]
[1644926194162,2.97129199,3109.0,3108.5,0.11849924]
[1644926194760,2.67129199,3109.0,3108.5,0.11849924]
[1644926194959,2.67129199,3109.0,3108.7,0.11849924]
[1644926195162,3.47534199,3109.0,3108.7,0.11849924]
[1644926195365,0.80407,3108.9,3108.7,0.11849924]
[1644926195560,1.9082604,3108.9,3108.7,0.11849924]
[1644926196714,2.2082604,3108.9,3108.7,0.11849924]
[1644926197514,3.29029805,3108.8,3108.7,0.11849924]
[1644926198119,1.9082604,3108.9,3108.7,0.11849924]
[1644926198718,0.8043,3108.8,3107.9,1.1396]
[1644926198917,0.80443,3108.5,3107.7,5.8275]
[1644926199117,0.8043721,3108.3,3107.7,5.8275]
[1644926199473,0.3,3108.2,3107.7,5.8275]
[1644926199670,0.8043721,3108.3,3107.7,5.8275]
[1644926199868,3.5,3108.7,3107.7,5.8275]
[1644926200065,1.60887,3108.8,3107.7,5.8275]
[1644926200268,0.80434,3108.2,3107.8,1.0]
[1644926200866,0.80434,3108.2,3107.7,5.8275]
[1644926201265,0.80434,3108.2,3107.8,1.0]
[1644926201472,0.8042,3108.1,3107.8,1.0]
[1644926201668,0.8043,3108.0,3107.8,1.0]
[1644926202269,0.8043,3108.0,3107.7,5.8275]
[1644926202469,1.60859,3108.0,3107.7,5.8275]
[1644926202670,0.80442,3107.9,3107.6,3.91080526]
[1644926202869,1.6088454,3107.9,3107.6,3.91080526]
[1644926203069,1.6088454,3107.9,3107.6,0.00330526]
[1644926203070,3.2177254,3107.9,3107.6,0.00330526]
[1644926203516,0.80444,3107.8,3107.3,0.80444]
[1644926203717,1.6088,3107.8,3107.6,0.00330522]
[1644926204718,0.80435,3107.7,3107.2,2.60876]
[1644926204912,0.80437,3107.6,3107.5,0.00330178]
[1644926205913,0.80437,3107.6,3107.1,1.1295]
[1644926206116,1.6089929,3107.5,3107.4,0.0033019]
[1644926206414,0.80452,3107.5,3107.4,0.0033019]
[1644926207066,0.80452,3107.5,3107.1,1.1295]
[1644926207273,1.60893,3107.5,3107.3,0.00330198]
[1644926207473,1.60893,3107.5,3107.3,0.80773198]
[1644926208271,1.60893,3107.5,3107.3,0.80443]
[1644926210715,0.80452,3107.5,3107.4,0.07277148]
[1644926210914,1.60874,3107.6,3107.4,0.07277148]
[1644926211914,1.60874,3107.6,3107.4,0.02277148]
[1644926212111,5.9131713,3107.6,3107.4,0.02277148]
[1644926213012,2.4131713,3107.6,3107.4,0.02277148]
[1644926213613,1.60874,3107.6,3107.4,0.02277148]
[1644926215863,1.90874,3107.6,3107.4,0.02277148]
[1644926216261,0.05250443,3107.5,3107.3,0.80773259]
[1644926216462,0.85685443,3107.5,3107.3,0.80773259]
[1644926216762,0.85685443,3107.5,3107.3,0.80443]
[1644926218916,0.85685443,3107.5,3107.4,3.12822309]
[1644926219112,0.85685443,3107.5,3107.3,0.80443]
[1644926219113,0.05250443,3107.5,3107.3,0.80443]
[1644926219914,0.85696263,3107.5,3107.3,0.80443]
[1644926220515,1.66130263,3107.5,3107.3,0.80443]
[1644926220713,0.85684443,3107.5,3107.3,0.80443]
[1644926221314,0.84990287,3107.5,3107.3,0.80443]
[1644926224660,0.82710236,3107.5,3107.3,0.80443]
[1644926225920,1.63160236,3107.5,3107.2,0.07569776]
[1644926226218,1.93160236,3107.5,3107.2,0.04061782]
[1644926226416,1.93160236,3107.5,3106.5,8.2257]
[1644926226620,0.80458,3107.2,3106.5,8.2257]
[1644926226819,0.3,3107.1,3106.5,8.2257]
[1644926227016,0.804655,3106.8,3106.5,8.2257]
[1644926227218,0.804655,3106.8,3106.5,1.1417]
[1644926227417,0.804655,3106.8,3106.5,1.94635]
[1644926227618,1.609315,3106.8,3106.5,1.94635]
[1644926227817,1.609315,3106.8,3106.5,1.94965588]
[1644926227818,0.80466,3106.8,3106.5,1.94965588]
[1644926228618,1.60931,3106.8,3106.5,1.94635]
[1644926228819,2.4139265,3106.8,3106.5,1.94635]
[1644926229018,2.4139265,3106.8,3106.5,1.94965588]
[1644926229863,2.4139265,3106.8,3106.5,1.94635]
[1644926230263,2.4139265,3106.8,3106.5,1.94965532]
[1644926231163,2.4139265,3106.8,3106.5,1.94635]
[1644926231369,1.1047195,3106.7,3106.5,0.00330532]
[1644926232362,2.77389919,3106.1,3105.9,0.00623923]
[1644926232762,1.60978,3106.1,3105.7,0.00623923]
[1644926232964,0.01597626,3107.0,3105.8,0.00623923]
[1644926233419,1.60925,3106.7,3105.8,0.00623923]
[1644926233617,0.80462,3106.7,3105.8,1.00623923]
[1644926233821,0.80462,3106.7,3106.2,0.00330565]
[1644926234018,1.10462,3106.7,3106.2,0.00330565]
[1644926234828,1.909364,3106.7,3106.3,0.80472]
[1644926235121,1.909364,3106.7,3106.3,0.80802561]
[1644926235519,1.60949,3106.5,3106.3,0.80802561]
[1644926235923,1.60949,3106.5,3106.2,0.80482]
[1644926236121,1.60949,3106.5,3106.2,0.80812565]
[1644926236722,1.6096,3106.4,3106.2,0.80812565]
[1644926236968,2.4144,3106.4,3106.2,0.80812565]
[1644926237172,3.2192108,3106.4,3106.2,0.80482]
[1644926237775,0.3,3106.3,3106.2,0.80482]
[1644926238174,1.10483,3106.3,3106.1,0.00954495]
[1644926238375,1.9096677,3106.3,3106.1,0.00623923]
[1644926238580,1.9096677,3106.3,3106.1,0.00954499]
[1644926239475,1.9096677,3106.3,3106.1,0.00623923]
[1644926239874,1.9096677,3106.3,3106.1,0.81100923]
[1644926240277,1.10483,3106.3,3106.1,0.81100923]
[1644926240725,1.10483,3106.3,3106.1,0.00623923]
[1644926240925,1.1410425,3106.3,3106.1,0.00623923]
[1644926241725,1.9458064,3106.3,3106.1,0.00623923]
[1644926242532,1.9458064,3106.3,3106.0,0.00330581]
[1644926242533,2.7506964,3106.3,3106.0,0.00330581]
[1644926242725,0.3,3106.1,3106.0,0.00330581]
[1644926243125,0.3,3106.1,3105.8,0.00623923]
[1644926243126,1.90973,3106.1,3105.8,0.00623923]
[1644926243426,3.51944,3106.1,3105.9,0.00330593]
[1644926244126,4.024234,3106.1,3105.9,0.00330593]
[1644926244327,3.21944,3106.1,3105.8,0.00623923]
[1644926244575,3.21944,3106.1,3105.8,0.00954521]
[1644926244772,3.21944,3106.1,3105.9,0.80483]
[1644926245375,3.21944,3106.1,3105.8,0.00954521]
[1644926245575,0.3,3106.0,3105.8,0.00623923]
[1644926245778,0.3,3106.0,3105.8,0.00954521]
[1644926245976,1.1049,3106.0,3105.8,0.00954521]
[1644926246174,1.90978,3106.0,3105.8,0.00954521]
[1644926246774,1.90978,3106.0,3105.8,0.00623923]
[1644926246975,2.7146656,3106.0,3105.8,0.00623923]
[1644926247174,2.7146656,3106.0,3105.7,0.00330606]
[1644926247876,2.7146656,3106.0,3105.6,0.00623923]
[1644926248076,0.8050169,3105.8,3105.1,12.297]
[1644926248317,3.29982125,3105.9,3105.7,0.00330611]
[1644926249218,1.61008,3105.6,3105.1,12.297]
[1644926250117,1.61008,3105.6,3105.2,1.0]
[1644926250316,1.61008,3105.6,3105.1,2.1676]
[1644926250517,1.61008,3105.6,3105.2,0.00259902]
[1644926250718,0.80494,3105.5,3105.2,0.00259902]
[1644926250920,1.60987,3105.5,3105.3,1.6098]
[1644926252376,0.01828766,3105.9,3105.4,3.5]
[1644926252574,0.01828766,3105.9,3105.5,1.6755]
[1644926252774,0.01828766,3105.9,3105.6,0.463]
[1644926252972,0.01828766,3105.9,3105.6,2.07241]
[1644926253273,0.01828766,3105.9,3105.7,0.80471]
[1644926253473,0.01828766,3105.9,3105.7,1.26771]
[1644926253672,0.01828766,3105.9,3105.7,2.26771]
[1644926254676,0.01828766,3105.9,3105.8,3.20365835]
[1644926254876,0.01828766,3105.9,3105.8,6.61755835]
[1644926255077,0.01828766,3105.9,3105.8,6.60295381]
[1644926256415,0.80474,3106.2,3105.8,6.60295381]
[1644926256620,0.80474,3106.2,3105.9,1.0]
[1644926256818,0.80474,3106.2,3106.0,0.80475]
[1644926257618,0.80474,3106.1,3106.0,0.80475]
[1644926258017,0.80474,3106.1,3106.0,0.89599916]
[1644926260773,0.84087886,3106.1,3106.0,0.89599916]
[1644926263524,1.64573886,3106.1,3105.9,0.89609916]
[1644926263815,2.45057726,3106.1,3105.9,0.09471626]
[1644926264819,2.45057726,3106.1,3105.9,0.09124916]
[1644926265723,0.3,3106.0,3105.9,0.09124916]
[1644926266725,4.06057096,3106.1,3105.9,0.09124916]
[1644926267768,0.3,3106.0,3105.9,0.09124916]
[1644926268670,1.10868682,3105.4,3105.2,0.09741881]
[1644926268873,1.10868682,3105.4,3105.2,0.90242881]
[1644926269070,0.3,3105.8,3105.2,0.90242881]
[1644926269275,0.03613886,3106.1,3105.3,0.00616965]
[1644926269473,0.03613886,3106.1,3105.4,0.09124916]
[1644926269774,1.60972,3105.6,3105.4,0.09124916]
[1644926269970,1.60972,3105.6,3105.4,0.90237881]
[1644926270173,1.60972,3105.6,3105.4,1.90237881]
[1644926271743,1.60820545,3105.6,3105.4,1.90237881]
[1644926272747,0.03610204,3106.0,3105.4,1.90237881]
[1644926272946,0.03610204,3106.0,3105.6,0.09124916]
[1644926273145,0.03610204,3106.0,3105.8,0.09124916]
[1644926274048,1.64564204,3106.0,3105.8,0.09124916]
[1644926274667,1.64564204,3106.0,3105.8,0.89602916]
[1644926275070,2.45047504,3106.0,3105.7,0.09459937]
[1644926275671,2.45047504,3106.0,3105.7,0.09124916]
[1644926275871,2.414373,3106.0,3105.7,0.09459941]
[1644926276870,2.414373,3106.0,3105.7,0.09124916]
[1644926277073,2.414373,3106.0,3105.7,0.09459941]
[1644926277770,2.414373,3106.0,3105.7,0.89949941]
[1644926277971,2.414373,3106.0,3105.7,0.09124916]
[1644926278217,2.414373,3106.0,3105.7,0.09442726]
[1644926279118,2.414373,3106.0,3105.7,0.89932726]
[1644926279323,2.414373,3106.0,3105.7,0.89614916]
[1644926279519,2.414373,3106.0,3105.7,0.89932726]
[1644926279923,2.414373,3106.0,3105.7,0.09442726]
[1644926280119,2.414373,3106.0,3105.8,0.09124916]
[1644926281122,0.02090018,3105.9,3105.8,0.09124916]
[1644926282670,0.02090018,3105.9,3105.4,0.00616965]
[1644926282671,0.32090018,3105.9,3105.4,0.00616965]
[1644926282871,0.32090018,3105.9,3104.9,5.8121]
[1644926282872,0.8648538,3105.2,3105.1,0.00616965]
[1644926285814,1.1648538,3105.2,3105.1,0.00616965]
[1644926286215,1.4648538,3105.2,3105.0,0.00319185]
[1644926286415,3.8805971,3105.2,3104.6,0.00616965]
[1644926286616,1.6105114,3105.1,3104.6,0.00616965]
[1644926286915,1.6105114,3105.1,3105.0,0.00319185]
[1644926287817,1.6105114,3105.1,3104.4,0.00616965]
[1644926287818,0.8053,3104.9,3104.4,0.00616965]
[1644926288019,3.2212684,3104.9,3104.4,0.00616965]
[1644926288318,3.5212684,3104.9,3104.4,0.00616965]
[1644926288920,1.61068,3104.8,3104.4,0.00616965]
[1644926289121,0.80538,3104.7,3104.5,0.00318982]
[1644926289321,1.10538,3104.7,3104.5,0.00318982]
[1644926289579,2.10538,3104.7,3104.5,0.00318982]